Cogmind - Beta 15 @@@ ROGUE MODE // 2025.07.20 @ 19:53:13 Player: Tuja Result: Destroyed by S-27 Virus with Autogun Performance ------------- Evolutions (5) 2500 Regions Visited (13) 2600 Robots Destroyed (48) 240 Value Destroyed (2169) 2169 Prototype IDs (26) 520 Alien Tech Used (0) 0 Bonus (1867) 1867 TOTAL SCORE: 9896 Bonus ------- Pacifist 270 High Alert Combat Kills 12 Follower Combat Kills 85 Entered Garrisons 200 Used RIF Installer 500 Entered DSFs 500 Aligned with FarCom 300 Cogmind --------- Core Integrity 0/1000 Matter 160/300 Energy 98/100 System Corruption 14% Temperature Cool (0) Movement Core (50) Location -5/Extension Parts ------- > --- POWER (2) -------- (None) > --- PROPULSION (4) --- (None) > --- UTILITY (6) ------ Relay Coupler [NC] (24) Relay Coupler [Swarmer] (26) Relay Coupler [Specialist] (18) > --- WEAPON (5) ------- (None) > --- INVENTORY (5) ---- Light Angular Momentum Engine Light Angular Momentum Engine Improved Remote Datajack Improved Plasma Cutter Peak State ------------ > --- POWER ------------ Reinforced Deuterium Engine Light Angular Momentum Engine > --- PROPULSION ------- Carbon-fiber Leg Carbon-fiber Leg Carbon-fiber Leg Flexi-carbon Leg > --- UTILITY ---------- Advanced Heat Sink Advanced Heat Sink Medium Storage Unit Gravity Neutralizer Improved Medium Armor Plating Relay Coupler [NC] > --- WEAPON ----------- High-powered Shock Rifle High-powered Shock Rifle Spread Laser Plasma Cannon KE Penetrator > --- INVENTORY -------- Light Angular Momentum Engine Light Angular Momentum Engine Thunder Leg Relay Coupler [Swarmer] Relay Coupler [Specialist] Heavy Laser Gauss Rifle KE Penetrator KE Penetrator Datajack [Rating: 71] Favorites ----------- Power Ion Engine Engine Ion Engine Power Core Light Nuclear Core Propulsion Carbon-fiber Leg Treads Light Treads Leg Carbon-fiber Leg Flight Unit Flying Fortress v7 Utility Advanced Heat Sink Device Advanced Heat Sink Storage Large Storage Unit Hackware Relay Coupler [NC] Protection Improved Light Armor Plating Weapon Gatling Laser Energy Gun Gatling Laser Energy Cannon Plasma Cannon Ballistic Gun Assault Rifle Ballistic Cannon Advanced Assault Cannon Launcher Proton Missile Launcher Special Weapon Mining Laser Special Melee Weapon Datajack Build | -11 -10 -10 -10 -9 -8 -7 -7 -7 -6 -6 -6 -5 -5 ------- Run | Yrd Mat Min Exi Min Mat Fac Low Low Fac DSF Gar Fac Ext Slots Evolved 10 | . . . . . 4 2 . . 2 . . 2 . Power 1 | . . . . . 1 . . . . . . . . Propulsion 2 | . . . . . 2 . . . . . . . . Utility 4 | . . . . . 1 1 . . 1 . . 1 . Weapon 3 | . . . . . . 1 . . 1 . . 1 . Parts Attached 76 | 5 1 1 . 1 7 6 . . . 10 23 20 2 Power 10 | . 1 . . . 1 . . . . 2 5 1 . Engine 8 | . 1 . . . 1 . . . . 1 4 1 . Core 2 | . . . . . . . . . . 1 1 . . Reactor . | . . . . . . . . . . . . . . Propulsion 19 | 2 . . . . 1 . . . . 6 6 4 . Treads 1 | . . . . . . . . . . . 1 . . Leg 15 | 2 . . . . . . . . . 6 4 3 . Wheel . | . . . . . . . . . . . . . . Hover . | . . . . . . . . . . . . . . Flight 3 | . . . . . 1 . . . . . 1 1 . Utility 20 | 1 . 1 . 1 3 3 . . . . 4 7 . Device 8 | . . . . 1 . 2 . . . . 3 2 . Storage 5 | 1 . 1 . . 2 . . . . . . 1 . Processor . | . . . . . . . . . . . . . . Hackware 3 | . . . . . . . . . . . . 3 . Protection 4 | . . . . . 1 1 . . . . 1 1 . Artifact . | . . . . . . . . . . . . . . Weapon 27 | 2 . . . . 2 3 . . . 2 8 8 2 Energy Gun 9 | 1 . . . . 1 . . . . . 4 3 . Energy Cannon 1 | . . . . . . . . . . . 1 . . Ballistic Gun 10 | 1 . . . . . . . . . 2 2 5 . Ballistic Cannon 1 | . . . . . . . . . . . 1 . . Launcher 2 | . . . . . . 2 . . . . . . . Special Weapon 3 | . . . . . 1 . . . . . . . 2 Impact Weapon . | . . . . . . . . . . . . . . Slashing Weapon . | . . . . . . . . . . . . . . Piercing Weapon . | . . . . . . . . . . . . . . Special Melee Weapon 1 | . . . . . . 1 . . . . . . . Unidentified Prototypes 1 | . . . . . . . . . . . . 1 . Parts Lost 58 | . . . . 1 . . . . . 15 13 28 1 Power 9 | . . . . . . . . . . 3 3 3 . Propulsion 15 | . . . . . . . . . . 4 3 7 1 Utility 12 | . . . . 1 . . . . . 3 2 6 . Weapon 22 | . . . . . . . . . . 5 5 12 . Highest Loss Streak 19 | . . . . 1 . . . . . 11 8 19 1 To Critical Strikes . | . . . . . . . . . . . . . . Average Backups 8 | 3 4 6 5 4 7 12 15 15 14 12 6 8 3 Power 1 | 1 1 1 1 1 . 1 3 3 3 2 1 1 2 Propulsion 1 | 1 2 2 1 1 1 1 1 1 1 1 . 1 . Utility 1 | . . . . . . 1 2 2 1 1 2 2 . Weapon 3 | 1 1 3 3 2 4 6 8 8 8 6 1 2 . Tool/Special . | . . . . . . . . . . . . . . Unused Backups 8 | . . . 2 . . . . . . . . 4 2 Power 2 | . . . . . . . . . . . . . 2 Propulsion 4 | . . . 2 . . . . . . . . 2 . Utility . | . . . . . . . . . . . . . . Weapon 2 | . . . . . . . . . . . . 2 . Tool/Special . | . . . . . . . . . . . . . . Average Slot Usage (%) 77 | . 85 100 100 96 68 75 76 76 73 79 69 86 18 Engine 9 | . 14 14 14 14 17 15 15 15 13 9 5 7 . Leg 13 | . 28 28 28 28 . . . . . 15 14 19 . Flight 2 | . . . . . 8 7 7 7 6 1 . . . Device 11 | . . . . . 9 15 15 15 20 19 10 14 . Storage 8 | . 14 28 28 23 13 7 7 7 6 6 6 4 . Hackware 1 | . . . . . . . . . . . . 5 17 Protection 3 | . . . . . . 7 7 7 6 1 2 4 . Energy Gun 11 | . 14 14 14 14 2 7 7 7 6 5 12 17 . Energy Cannon 1 | . . . . . . . . . . . 2 3 . Ballistic Gun 6 | . 14 14 14 14 9 7 7 7 6 13 5 1 . Launcher 1 | . . . . . . 6 7 7 6 3 . . . Peak Build Rating 71 | 5 6 7 10 10 45 55 55 55 58 62 48 71 22 Average Rating 40 | 3 6 7 8 9 40 51 55 55 58 42 36 56 12 On Entrance 27 | . 5 6 7 10 10 43 55 55 55 58 18 48 17 Naked Turns . | . . . . . . . . . . . . . . Heaviest Build 68 | 8 13 15 15 15 40 48 48 48 49 50 58 68 . Greatest Support 80 | 20 20 20 20 20 50 50 50 50 50 80 65 73 7 Greatest Overweight (x) 10 | . . . . . . . . . . 10 10 2 . Average Overweight (x) . | . . . . . . . . . . . . . . Largest Inventory Capacity 15 | 8 8 8 8 8 15 15 15 15 15 15 15 15 5 Average Capacity 11 | 7 8 8 8 8 8 15 15 15 15 15 15 9 5 Most Carried 15 | 5 7 6 8 8 11 15 15 15 14 14 12 10 4 Average Carried 8 | 3 5 6 7 7 7 12 15 15 14 12 6 8 3 Final Capacity 15 | 8 8 8 8 8 15 15 15 15 15 15 15 5 5 Final Carried 15 | 5 7 6 8 8 11 15 15 15 14 13 9 4 4 Class Distribution -------------------- 41% | Scavenger-Skirmisher 27% | Mutant 15% | Infiltrator-Skirmisher 11% | Skirmisher 4% | Infiltrator-Tank Dominant Class ---------------- Mutant | -10/Materials Mutant | -10/Mines Mutant | -10/Exiles Mutant | -9/Mines Mutant | -8/Materials Infiltrator-Skirmisher | -7/Factory Infiltrator-Tank | -7/Lower Caves Infiltrator-Tank | -7/Lower Caves Infiltrator-Skirmisher | -6/Factory Infiltrator-Skirmisher | -6/DSF Scavenger-Skirmisher | -6/Garrison Scavenger-Skirmisher | -5/Factory Mutant | -5/Extension Resources | -11 -10 -10 -10 -9 -8 -7 -7 -7 -6 -6 -6 -5 -5 ----------- Run | Yrd Mat Min Exi Min Mat Fac Low Low Fac DSF Gar Fac Ext Matter Collected 1383 | 250 . . . 55 120 109 24 21 . 145 391 268 . Remotely . | . . . . . . . . . . . . . . Salvage Created 1797 | . . . . 17 110 26 74 90 . 238 489 753 . Parts 81 | . . . . . 6 1 5 8 . 24 14 23 . Haulers Intercepted . | . . . . . . . . . . . . . . Recyclers Shooed 1 | . . . . . . . . . . . . 1 . Parts Field Recycled . | . . . . . . . . . . . . . . Retrieved Matter . | . . . . . . . . . . . . . . Parts Self-Destructed 14 | . . . . . . . 6 8 . . . . . Prevented 3 | . . . . . . . 3 . . . . . . Kills | -11 -10 -10 -10 -9 -8 -7 -7 -7 -6 -6 -6 -5 -5 ------- Run | Yrd Mat Min Exi Min Mat Fac Low Low Fac DSF Gar Fac Ext Combat Hostiles Destroyed 48 | . . . . 1 2 1 4 4 . 12 10 14 . Guns 29 | . . . . 1 2 1 4 4 . 5 4 8 . Cannons 6 | . . . . . . . . . . . 5 1 . AOE 12 | . . . . . . . . . . 7 . 5 . Classes Destroyed 10 | . . . . 1 1 1 . . . 3 1 3 . Recycler 1 | . . . . . . . . . . . . 1 . Swarmer 20 | . . . . . . 1 4 4 . 7 . 4 . Cutter 3 | . . . . . . . . . . 3 . . . Grunt 15 | . . . . . . . . . . 1 8 6 . Brawler 3 | . . . . . . . . . . . 2 1 . Sentry 2 | . . . . . 2 . . . . . . . . Specialist 1 | . . . . . . . . . . 1 . . . Hunter 1 | . . . . . . . . . . . . 1 . Programmer 2 | . . . . . . . . . . . . 2 . Assembled 1 | . . . . 1 . . . . . . . . . Best Kill Streak 8 | . . . . 1 1 1 4 4 . 8 3 5 . Combat Bots Only 8 | . . . . 1 1 1 4 4 . 8 3 4 . Max Kills in Single Turn 5 | . . . . 1 1 1 2 1 . 5 1 5 . Gunslinging 1 | . . . . . . . . . . 1 . 1 . Exploded 5 | . . . . . . . . . . 5 . 4 . Melee . | . . . . . . . . . . . . . . Uniques/NPCs Destroyed . | . . . . . . . . . . . . . . Combat | -11 -10 -10 -10 -9 -8 -7 -7 -7 -6 -6 -6 -5 -5 -------- Run | Yrd Mat Min Exi Min Mat Fac Low Low Fac DSF Gar Fac Ext Hostile Shots Fired 617 | . . . . 21 4 6 35 29 . 165 71 260 26 Missed 174 | . . . . 8 3 4 12 12 . 50 10 65 10 Hits 443 | . . . . 13 1 2 23 17 . 115 61 195 16 Melee 15 | . . . . 1 . . . . . 7 3 4 . Projectile 428 | . . . . 12 1 2 23 17 . 108 58 191 16 AOE 2 | . . . . 1 . . . . . 1 . . . Critical Strikes 16 | . . . . . . . 1 . . 5 4 5 1 Part Disruptions 6 | . . . . . . . . . . 6 . . . Damage Taken 8336 | . . . . 203 17 58 347 248 . 2247 1232 3666 318 Core 1807 | . . . . 33 17 . 13 . . 476 255 708 305 Absorbed by Shields 9 | . . . . . . . . . . . 9 . . Core Remaining (%) 78 | 100 . . . 86 96 . . 98 . . 14 . . Volleys Fired 122 | . . . . 10 12 5 8 7 . 15 33 32 . Largest 5 | . . . . 2 2 2 2 2 . 4 4 5 . Hottest 359 | . . . . 60 100 100 100 100 . 159 294 359 . Shots Fired 333 | . . . . 20 14 8 16 13 . 52 99 111 . Gun 275 | . . . . 20 4 6 16 13 . 48 72 96 . Cannon 42 | . . . . . . . . . . . 27 15 . Launcher 4 | . . . . . . . . . . 4 . . . Special 12 | . . . . . 10 2 . . . . . . . Kinetic 133 | . . . . 10 2 3 8 7 . 33 43 27 . Thermal 165 | . . . . 10 12 5 8 6 . 15 56 53 . Explosive 2 | . . . . . . . . . . 2 . . . Electromagnetic 33 | . . . . . . . . . . 2 . 31 . Robot Hit Streak 18 | . . . . 6 6 8 3 5 . 10 11 18 . Robot Miss Streak 8 | . . . . 4 1 5 6 4 . 8 3 4 . Penetration Max 1 | . . . . . . . . . . . . 1 . Secondary Targets 12 | . . . . 1 . . 2 3 . 3 1 2 . Max Gunslinging Chain 2 | . . . . 1 . . 1 1 . 2 1 1 . Shots Hit Robots 232 | . . . . 11 4 8 8 9 . 29 67 96 . Core Hits 155 | . . . . 3 4 3 7 8 . 33 47 50 . Critical Kills . | . . . . . . . . . . . . . . Critical Parts Destroyed 1 | . . . . . . . . . . . . 1 . Critical Strikes 4 | . . . . . . . . . . . 1 3 . Burn 1 | . . . . . . . . . . . . 1 . Destroy 1 | . . . . . . . . . . . . 1 . Blast 1 | . . . . . . . . . . . 1 . . Corrupt 1 | . . . . . . . . . . . . 1 . Melee Attacks 19 | . . . . . . 4 . . . . . 15 . Impact . | . . . . . . . . . . . . . . Slashing . | . . . . . . . . . . . . . . Piercing . | . . . . . . . . . . . . . . Sneak Attacks 16 | . . . . . . 4 . . . . . 12 . Combat Hostiles 1 | . . . . . . . . . . . . 1 . Follow-up Attacks . | . . . . . . . . . . . . . . Damage Inflicted 5761 | . . . . 120 55 82 156 126 . 986 1453 2783 . Guns 3573 | . . . . 120 55 82 156 126 . 414 951 1669 . Cannons 747 | . . . . . . . . . . . 502 245 . Explosions 1419 | . . . . . . . . . . 550 . 869 . Melee . | . . . . . . . . . . . . . . Ramming 22 | . . . . . . . . . . 22 . . . Kinetic 1400 | . . . . 55 23 25 22 51 . 164 486 574 . Thermal 3253 | . . . . 65 32 57 134 75 . 250 967 1673 . Explosive 434 | . . . . . . . . . . 434 . . . Electromagnetic 652 | . . . . . . . . . . 116 . 536 . Impact . | . . . . . . . . . . . . . . Slashing . | . . . . . . . . . . . . . . Piercing . | . . . . . . . . . . . . . . Highest Corruption 14 | . . . . 4 . . . . . 3 5 14 14 Average Corruption 5 | . . . . 4 . . . . . 1 4 5 14 Corruption Purged . | . . . . . . . . . . . . . . Corruption Blocked . | . . . . . . . . . . . . . . Effects 62 | . . . . . . . . . . . 34 22 6 Message Errors 9 | . . . . . . . . . . . 6 2 1 Matter Fused 21 | . . . . . . . . . . . 13 4 4 Heat Flow Errors 3 | . . . . . . . . . . . 2 1 . Energy Discharges 6 | . . . . . . . . . . . 4 2 . Parts Fused 1 | . . . . . . . . . . . 1 . . Data Loss (minor) 6 | . . . . . . . . . . . 3 3 . Data Loss (major) 2 | . . . . . . . . . . . 1 1 . Misfires 3 | . . . . . . . . . . . 1 2 . Alerts 3 | . . . . . . . . . . . 1 1 1 Misdirections 3 | . . . . . . . . . . . . 3 . Weapon Failures 5 | . . . . . . . . . . . 2 3 . Overload Shots . | . . . . . . . . . . . . . . Overflow Damage 212 | . . . . . . . . . . . . 212 . Projectiles . | . . . . . . . . . . . . . . Explosions 212 | . . . . . . . . . . . . 212 . Melee . | . . . . . . . . . . . . . . Knockbacks 3 | . . . . . . . . . . . 3 . . Impact . | . . . . . . . . . . . . . . Kinetic 3 | . . . . . . . . . . . 3 . . Secondary . | . . . . . . . . . . . . . . Self-Inflicted Damage 195 | . . . . . . . . . . . . 195 . Shots 3 | . . . . . . . . . . . . 3 . Rammed . | . . . . . . . . . . . . . . Targets Rammed 4 | . . . . . . . . . . 4 . . . Kicked 4 | . . . . . . . . . . 4 . . . Crushed . | . . . . . . . . . . . . . . Highest Temperature 486 | . . . . . 132 115 351 324 . 10 486 428 . Average Temperature 135 | . . . . . 36 47 176 169 . 7 190 148 . Received Heat Transfer 1416 | . . . . . . 12 . . . 525 534 333 12 Effects 4 | . . . . . . . . . . . 3 1 . Shutdowns 3 | . . . . . . . . . . . 2 1 . Interference 1 | . . . . . . . . . . . 1 . . Siege Activations . | . . . . . . . . . . . . . . Martial Activations . | . . . . . . . . . . . . . . Shielding Activations . | . . . . . . . . . . . . . . Robots Disrupted 1 | . . . . . . . . . . . . 1 . Combat Hostiles 1 | . . . . . . . . . . . . 1 . Robots Corrupted . | . . . . . . . . . . . . . . Combat Hostiles . | . . . . . . . . . . . . . . Parts Fried . | . . . . . . . . . . . . . . Impact Corruptions . | . . . . . . . . . . . . . . Robots Melted 1 | . . . . . . . . . . . 1 . . Combat Hostiles 1 | . . . . . . . . . . . 1 . . Parts Melted 3 | . . . . . . . 1 . . . 1 1 . Heat Transferred 5096 | . . . . 150 75 125 300 175 . 575 1686 2010 . Parts Sabotaged . | . . . . . . . . . . . . . . Parts Stolen . | . . . . . . . . . . . . . . Parts Stripped . | . . . . . . . . . . . . . . Power Chain Reactions 1 | . . . . . . . . . . . . 1 . Alert | -11 -10 -10 -10 -9 -8 -7 -7 -7 -6 -6 -6 -5 -5 ------- Run | Yrd Mat Min Exi Min Mat Fac Low Low Fac DSF Gar Fac Ext Maximum Alert Level 2 | . . . . . . . . . . 1 2 1 . Low Security (%) 70 | 100 100 100 . 100 100 100 . . 100 86 23 85 100 Level 1 22 | . . . . . . . . . . 13 53 14 . Level 2 6 | . . . . . . . . . . . 22 . . Level 3 . | . . . . . . . . . . . . . . Level 4 . | . . . . . . . . . . . . . . Level 5 . | . . . . . . . . . . . . . . High Security . | . . . . . . . . . . . . . . Max Security . | . . . . . . . . . . . . . . Sterilizations 1 | . . . . . . . . . . 1 . . . Peak Influence 513 | . 8 . . 20 35 44 . . 69 349 513 318 93 Initial 268 | . . . . . . 6 . . 69 44 198 268 93 Average 134 | . . . . 1 5 7 . . 65 144 303 88 66 Influence Increases 1960 | . 8 . . 51 80 110 90 90 5 370 445 681 30 Destroy 0b10 Robot/C 1000 | . . . . 20 40 60 80 80 . 240 200 280 . Destroy 0b10 Robot/NC 20 | . . . . . . 15 . . . . . 5 . Destroy Leader 142 | . . . . . 20 12 10 10 . 30 10 50 . Allied During Kill 7 | . . . . 1 . 6 . . . . . . . Successful Hack 28 | . 8 . . . 10 . . . 5 . . 5 . Disable Machine 105 | . . . . . . . . . . . . 105 . Anti-Garrison Action 150 | . . . . . . . . . . . 150 . . Destroy Structure 118 | . . . . . 10 2 . . . 10 10 86 . Partial Spotted 15 | . . . . . . . . . . . . 15 . Lose Combat Pursuer 375 | . . . . 30 . 15 . . . 90 75 135 30 Influence Decreases 1897 | . 8 . . 51 66 108 56 30 51 170 196 1003 158 Entered New Map 495 | . . . . . . 8 7 10 41 20 66 245 98 Time Decay 779 | . 8 . . 30 66 88 49 20 10 . . 458 50 Lost Part 580 | . . . . 10 . . . . . 150 130 280 10 Lost Ally 43 | . . . . 11 . 12 . . . . . 20 . Squads Dispatched 11 | . 1 . . . . 1 . . . 3 . 6 . Investigation . | . . . . . . . . . . . . . . Extermination 3 | . . . . . . 1 . . . . . 2 . Reinforcement 8 | . 1 . . . . . . . . 3 . 4 . Assault . | . . . . . . . . . . . . . . Garrison . | . . . . . . . . . . . . . . Intercept . | . . . . . . . . . . . . . . Searches Triggered . | . . . . . . . . . . . . . . Construction Impeded 2 | . . . . . . . . . . . . 2 . Haulers Reinforced . | . . . . . . . . . . . . . . Active Scanning Responses . | . . . . . . . . . . . . . . Cargo Convoy Interrupts 1 | . . . . . . . . . . . . 1 . Stealth | -11 -10 -10 -10 -9 -8 -7 -7 -7 -6 -6 -6 -5 -5 --------- Run | Yrd Mat Min Exi Min Mat Fac Low Low Fac DSF Gar Fac Ext Distress Signals 5 | . . . . 1 . 1 . . . . . 3 . Communications Jammed . | . . . . . . . . . . . . . . Distress Signals . | . . . . . . . . . . . . . . Times Spotted 102 | . . . . 8 3 5 4 4 . 26 12 31 9 Peak Tracking Total 9 | . . . . 3 1 2 4 4 . 9 4 7 7 Tactical Retreats 17 | . . . . 2 . 1 . . . 6 3 4 1 Traps | -11 -10 -10 -10 -9 -8 -7 -7 -7 -6 -6 -6 -5 -5 ------- Run | Yrd Mat Min Exi Min Mat Fac Low Low Fac DSF Gar Fac Ext Traps Triggered 2 | . . . . . . . . . . 1 1 . . Indirectly . | . . . . . . . . . . . . . . Trap Hack Attempts . | . . . . . . . . . . . . . . Triggered . | . . . . . . . . . . . . . . Disarmed . | . . . . . . . . . . . . . . Reprogrammed . | . . . . . . . . . . . . . . Reused . | . . . . . . . . . . . . . . Traps Extracted . | . . . . . . . . . . . . . . Installed . | . . . . . . . . . . . . . . Triggered . | . . . . . . . . . . . . . . Machines | -11 -10 -10 -10 -9 -8 -7 -7 -7 -6 -6 -6 -5 -5 ---------- Run | Yrd Mat Min Exi Min Mat Fac Low Low Fac DSF Gar Fac Ext Machines Disabled 8 | . . . . . . . . . . . 1 7 . Max in Single Turn 6 | . . . . . . . . . . . 1 6 . Garrison Relay 1 | . . . . . . . . . . . 1 . . Machines Repaired . | . . . . . . . . . . . . . . Machines Dismantled . | . . . . . . . . . . . . . . Machines Sabotaged . | . . . . . . . . . . . . . . Overloaded Fab Kills . | . . . . . . . . . . . . . . Hacking | -11 -10 -10 -10 -9 -8 -7 -7 -7 -6 -6 -6 -5 -5 --------- Run | Yrd Mat Min Exi Min Mat Fac Low Low Fac DSF Gar Fac Ext Machines Accessed 15 | . 1 . 2 . 2 5 . . 2 . 1 2 . Terminals 13 | . 1 . . . 2 5 . . 2 . 1 2 . Fabricators . | . . . . . . . . . . . . . . Repair Stations . | . . . . . . . . . . . . . . Recycling Units . | . . . . . . . . . . . . . . Scanalyzers . | . . . . . . . . . . . . . . Garrison Access . | . . . . . . . . . . . . . . Total Hacks 31 | . 2 . 2 . 11 5 . . 2 . 1 8 . Successful 14 | . 2 . 2 . 4 1 . . 1 . . 4 . Failed 17 | . . . . . 7 4 . . 1 . 1 4 . Catastrophic 6 | . . . . . 1 2 . . 1 . 1 1 . Database Lockouts . | . . . . . . . . . . . . . . Manual 8 | . 1 . 1 . 4 2 . . . . . . . Terminals 29 | . 2 . . . 11 5 . . 2 . 1 8 . Fabricators . | . . . . . . . . . . . . . . Repair Stations . | . . . . . . . . . . . . . . Recycling Units . | . . . . . . . . . . . . . . Scanalyzers . | . . . . . . . . . . . . . . Garrison Access . | . . . . . . . . . . . . . . Terminal Hacks 14 | . 2 . 2 . 4 1 . . 1 . . 4 . Record 2 | . . . 1 . . 1 . . . . . . . Prototype ID Bank 1 | . . . . . . . . . . . . 1 . Open DSF 1 | . . . . . . . . . 1 . . . . Branch Access Points 1 | . 1 . . . . . . . . . . . . Alert Level 1 | . . . . . . . . . . . . 1 . Locate Traps 2 | . 1 . . . 1 . . . . . . . . Transport Status 1 | . . . . . 1 . . . . . . . . Investigation Status 1 | . . . . . 1 . . . . . . . . Reinforcement Status 1 | . . . . . . . . . . . . 1 . Registered Components 1 | . . . . . . . . . . . . 1 . Zone Layout 1 | . . . . . 1 . . . . . . . . Proto ID Catalog 1 | . . . 1 . . . . . . . . . . Fabricator Hacks . | . . . . . . . . . . . . . . Repair Station Hacks . | . . . . . . . . . . . . . . Recycling Unit Hacks . | . . . . . . . . . . . . . . Scanalyzer . | . . . . . . . . . . . . . . Garrison Access Hacks . | . . . . . . . . . . . . . . Unauthorized Hacks . | . . . . . . . . . . . . . . Terminals . | . . . . . . . . . . . . . . Fabricators . | . . . . . . . . . . . . . . Repair Stations . | . . . . . . . . . . . . . . Recycling Units . | . . . . . . . . . . . . . . Scanalyzers . | . . . . . . . . . . . . . . Garrison Access . | . . . . . . . . . . . . . . Data Cores Recovered . | . . . . . . . . . . . . . . Used . | . . . . . . . . . . . . . . Hacking Detections 10 | . . . . . 2 5 . . 1 . 1 1 . Full Trace Events . | . . . . . . . . . . . . . . Feedback Events . | . . . . . . . . . . . . . . Feedback Blocked . | . . . . . . . . . . . . . . Robot Schematics Acquired . | . . . . . . . . . . . . . . Robots Built . | . . . . . . . . . . . . . . Authchips . | . . . . . . . . . . . . . . Time . | . . . . . . . . . . . . . . Total Robot Build Rating . | . . . . . . . . . . . . . . Part Schematics Acquired . | . . . . . . . . . . . . . . Parts Built . | . . . . . . . . . . . . . . Authchips . | . . . . . . . . . . . . . . Time . | . . . . . . . . . . . . . . Total Part Build Rating . | . . . . . . . . . . . . . . Parts Repaired . | . . . . . . . . . . . . . . Time . | . . . . . . . . . . . . . . Parts Recycled . | . . . . . . . . . . . . . . Recycled Matter . | . . . . . . . . . . . . . . Retrieved Matter . | . . . . . . . . . . . . . . Retrieved Components . | . . . . . . . . . . . . . . Parts Scanalyzed . | . . . . . . . . . . . . . . Part Schematics Acquired . | . . . . . . . . . . . . . . Parts Damaged . | . . . . . . . . . . . . . . Bothacking | -11 -10 -10 -10 -9 -8 -7 -7 -7 -6 -6 -6 -5 -5 ------------ Run | Yrd Mat Min Exi Min Mat Fac Low Low Fac DSF Gar Fac Ext Used RIF Installer 1 | . . . . . . . . . . . 1 . . Robots Hacked 11 | . . . . . . . . . . . . 11 . Non-combat 11 | . . . . . . . . . . . . 11 . Combat . | . . . . . . . . . . . . . . Robot Hacks Applied 13 | . . . . . . . . . . . . 13 . no_distress 3 | . . . . . . . . . . . . 3 . find_chute 1 | . . . . . . . . . . . . 1 . ignore_repairs 1 | . . . . . . . . . . . . 1 . map_earth 2 | . . . . . . . . . . . . 2 . find_fabricator 1 | . . . . . . . . . . . . 1 . find_recycling 1 | . . . . . . . . . . . . 1 . ignore_parts 3 | . . . . . . . . . . . . 3 . find_station 1 | . . . . . . . . . . . . 1 . Relay Couplers Released 3 | . . . . . . . . . . . 3 . . Machine Destruction 3 | . . . . . . . . . . . 3 . . Attached 3 | . . . . . . . . . . . . 3 . Fabnet Peak Effective % . | . . . . . . . . . . . . . . Robots Rewired 3 | . . . . . . 2 . . . . . 1 . Allies Hacked . | . . . . . . . . . . . . . . Hacks Repelled . | . . . . . . . . . . . . . . Allies | -11 -10 -10 -10 -9 -8 -7 -7 -7 -6 -6 -6 -5 -5 -------- Run | Yrd Mat Min Exi Min Mat Fac Low Low Fac DSF Gar Fac Ext Total Allies 6 | . . . . 3 . 2 . . . . . 1 . Largest Group 3 | . . . . 3 . 2 1 . . . . 1 . Highest-Rated Group 46 | . . . . 40 . 46 21 . . . . 29 . Highest-Rated Ally 29 | . . . . 16 . 25 21 . . . . 29 . Initial Warlord ECA Mod 10 | . . . . . . . . . . . 10 . . Total Orders . | . . . . . . . . . . . . . . Ally Attacks 26 | . . . . 14 . 11 1 . . . . . . Total Damage 366 | . . . . 94 . 238 34 . . . . . . Kills 6 | . . . . 1 . 5 . . . . . . . Allies Corrupted . | . . . . . . . . . . . . . . Allies Melted . | . . . . . . . . . . . . . . Intel | -11 -10 -10 -10 -9 -8 -7 -7 -7 -6 -6 -6 -5 -5 ------- Run | Yrd Mat Min Exi Min Mat Fac Low Low Fac DSF Gar Fac Ext Active Infowar (turns) 2255 | . . . . 14 516 503 185 57 29 393 558 . . Sensors 201 | . . . . . . . . . . . 201 . . Structural 1672 | . . . . 14 516 503 185 57 29 368 . . . Jamming 1672 | . . . . . . 450 185 57 29 393 558 . . Robot Analysis Total . | . . . . . . . . . . . . . . Derelict Logs Recovered . | . . . . . . . . . . . . . . Drone Launches . | . . . . . . . . . . . . . . Drone Recoveries . | . . . . . . . . . . . . . . Exploration | -11 -10 -10 -10 -9 -8 -7 -7 -7 -6 -6 -6 -5 -5 ------------- Run | Yrd Mat Min Exi Min Mat Fac Low Low Fac DSF Gar Fac Ext Turns Passed 5565 | 74 40 66 292 233 516 503 185 57 29 396 1551 1507 116 Spaces Moved 3817 | 58 31 55 242 133 388 588 244 65 56 191 614 924 228 Core 355 | 14 . . . . . . . . . 3 2 146 190 Treads . | . . . . . . . . . . . . . . Legs 1954 | 44 31 55 242 133 . . . . . 89 612 748 . Wheels . | . . . . . . . . . . . . . . Hover . | . . . . . . . . . . . . . . Flight 1508 | . . . . . 388 588 244 65 56 99 . 30 38 Fastest Speed 45 | 50 120 120 120 120 50 50 50 50 50 50 120 45 45 Average Speed 100 | 103 120 120 120 120 50 50 50 50 50 103 174 127 49 Slowest Speed 550 | 120 120 120 120 120 50 50 50 50 50 550 550 260 50 Overloaded Moves . | . . . . . . . . . . . . . . Propulsion Burnouts . | . . . . . . . . . . . . . . Robots Hopped 12 | . . . . . . 10 2 . . . . . . Potential Cave-ins . | . . . . . . . . . . . . . . Cave-ins Triggered . | . . . . . . . . . . . . . . Exploration Rate (%) 27 | 4 12 12 62 23 28 16 48 11 1 83 41 23 25 Regions Visited 13 Branch Regions 6 Pre-discovered Areas . | . . . . . . . . . . . . . . Known Exits Taken 2 | . 1 . . . . . . . 1 . . . . Unknown Exits Taken 9 | 1 . 1 1 1 1 1 1 1 . . . 1 . Scrap Searched 1 | . . . . . . . . 1 . . . . . Spaces Dug 10 | . . . . . 10 . . . . . . . . Terrain Destroyed 70 | . . . . . 10 . . . . 11 . 49 . Melee . | . . . . . . . . . . . . . . Projectile 15 | . . . . . 10 . . . . . . 5 . AOE 55 | . . . . . . . . . . 11 . 44 . Terrain Rammed . | . . . . . . . . . . . . . . Walls Destroyed . | . . . . . . . . . . . . . . Machines Disabled . | . . . . . . . . . . . . . . Actions | -11 -10 -10 -10 -9 -8 -7 -7 -7 -6 -6 -6 -5 -5 --------- Run | Yrd Mat Min Exi Min Mat Fac Low Low Fac DSF Gar Fac Ext Total 5234 | 72 34 55 244 187 676 769 286 74 56 354 1023 1171 233 Wait 1081 | . . . . 41 245 164 37 3 . 115 335 140 1 Move 3784 | 57 30 54 241 132 387 572 239 64 55 190 612 923 228 Hop 7 | . . . . . . 5 2 . . . . . . Pick Up 92 | 10 3 . 1 2 15 8 . . . 13 18 22 . Fast Attach . | . . . . . . . . . . . . . . Attach 72 | 5 1 1 . 1 4 3 . . 1 10 23 21 2 Detach 4 | . . . . . . . . . . . 1 1 2 Swap 23 | . . . . . 5 6 . . . 2 1 9 . Drop 26 | . . . 2 1 8 2 . . . 5 . 8 . Fire 122 | . . . . 10 12 5 8 7 . 15 33 32 . Melee 19 | . . . . . . 4 . . . . . 15 . Ram . | . . . . . . . . . . . . . . Kick 4 | . . . . . . . . . . 4 . . . Crush . | . . . . . . . . . . . . . . Escape Stasis . | . . . . . . . . . . . . . . Rewire . | . . . . . . . . . . . . . . Trap . | . . . . . . . . . . . . . . Miscellaneous . | . . . . . . . . . . . . . . Route ------- -11/Scrapyard -10/Materials -10/Mines -10/Exiles (discovered 2 exits: [*Min x2]) -9/Mines -8/Materials -7/Factory -7/Lower Caves -7/Lower Caves -6/Factory -6/DSF -6/Garrison -5/Factory -5/Extension History --------- Turn | Location | Event 19 | -11/Scrapyard | Discovered new exit (range 15) 75 | -11/Scrapyard | Entered Materials 91 | -10/Materials | Identified exit to Mines 115 | -10/Materials | Entered Mines 176 | -10/Mines | Deemed a non-threat by the Exiles lab entrance 176 | -10/Mines | Discovered new exit (range 5) 181 | -10/Mines | Entered Exiles 202 | -10/Exiles | Discovered new exit (range 15) 216 | -10/Exiles | Met 8R-AWN 233 | -10/Exiles | Met EX-HEX 268 | -10/Exiles | Met EX-BIN 282 | -10/Exiles | Aligned with FarCom system 283 | -10/Exiles | Given EX-Vault access code 307 | -10/Exiles | Build established: Mutant 313 | -10/Exiles | Opened EX-Vault 324 | -10/Exiles | Found Flying Fortress v7 349 | -10/Exiles | Warned to stay clear of 0b10 Research branches 384 | -10/Exiles | Met EX-DEC 459 | -10/Exiles | Discovered new exit (range 12) 473 | -10/Exiles | Left Exiles lab with Flying Fortress v7 473 | -10/Exiles | Entered Mines 490 | -9/Mines | Met a Derelict bent on vengeance 491 | -9/Mines | Assembled infested the area 496 | -9/Mines | Assisted by a Guerilla fighting off Assembled 506 | -9/Mines | Assisted by bots powering up and referring to "LRC-V3" 629 | -9/Mines | Lost 3 allies 700 | -9/Mines | Discovered new exit (range 5) 706 | -9/Mines | Entered Materials 706 | -8/Materials | Evolved 4 slots: Power x1, Propulsion x2, Utility x1 1179 | -8/Materials | Discovered new exit (range 16) 1222 | -8/Materials | Entered Factory 1222 | -7/Factory | Evolved 2 slots: Utility x1, Weapon x1 1582 | -7/Factory | Build established: Infiltrator-Skirmisher 1706 | -7/Factory | Discovered new exit (range 8) 1725 | -7/Factory | Entered Lower Caves 1725 | -7/Lower Caves | Accompanied by 1 ally 1905 | -7/Lower Caves | Discovered new exit (range 7) 1910 | -7/Lower Caves | Entered another Lower Caves area 1963 | -7/Lower Caves | Discovered new exit (range 8) 1967 | -7/Lower Caves | Entered Factory 1967 | -6/Factory | Evolved 2 slots: Utility x1, Weapon x1 1996 | -6/Factory | Identified exit to DSF 1996 | -6/Factory | Entered DSF 2031 | -6/DSF | Additional patrols routed to DSF 2133 | -6/DSF | Lost 3 parts (1p1u1w) 2349 | -6/DSF | Sterilization system engaged 2353 | -6/DSF | Discovered new exit (range 16) 2369 | -6/DSF | Ambient heat levels rising (+10) 2369 | -6/DSF | Destroyed 8 combat bots 2384 | -6/DSF | Ambient heat levels rising (+10) 2387 | -6/DSF | Core integrity fell below 50% 2392 | -6/DSF | Entered Garrison 2407 | -6/Garrison | Lost 11 parts (2p3n2u4w) 2632 | -6/Garrison | Triggered checkpoint 2690 | -6/Garrison | Lost 8 parts (2p3n1u2w) 2755 | -6/Garrison | Garrison Relay disabled 2931 | -6/Garrison | Build established: Skirmisher 3124 | -6/Garrison | Triggered checkpoint 3214 | -6/Garrison | Lost 4 parts (1p3w) 3231 | -6/Garrison | Core integrity fell below 20% 3541 | -6/Garrison | Build established: Scavenger-Skirmisher 3684 | -6/Garrison | Triggered checkpoint 3824 | -6/Garrison | Triggered checkpoint 3889 | -6/Garrison | Discovered new exit (range 13) 3903 | -6/Garrison | Installed Relay Interface Framework 3943 | -6/Garrison | Entered Factory 3943 | -5/Factory | Evolved 2 slots: Utility x1, Weapon x1 4627 | -5/Factory | Lost 4 parts (2n1u1w) 5130 | -5/Factory | Cargo convoy interrupted 5219 | -5/Factory | Lost 4 parts (1p1n1u1w) 5335 | -5/Factory | System corruption reached 10% 5357 | -5/Factory | Core integrity fell below 50% 5390 | -5/Factory | Lost 19 parts (2p4n3u10w) 5443 | -5/Factory | Discovered new exit (range 16) 5450 | -5/Factory | Entered Extension 5561 | -5/Extension | Spotted B-75 Beast 5563 | -5/Extension | Spotted B-75 Beast 5564 | -5/Extension | Core integrity fell below 20% 5566 | -5/Extension | Destroyed by S-27 Virus with Autogun Last Messages --------------- 05435_ Acquired Field Propulsion Drive. 05443_ EXIT=FOUND 05444_ System corrupted: Energy discharge (-23). LOCATION=UNKNOWN GOAL=ESCAPE 05450_ Receiving FarCom transmissions... 05450_ Identified Imp. Plasma Cutter. 05469_ System corrupted: Matter fused (-6). 05469_ Penetrated by Slug. 05469_ Field Propulsion Drive destroyed. 05479_ K-01 Serf exits Transfer Station. 05485_ A&C/HD#D6IP 4XI5ZXXZUQJV 05503_ System corrupted: Matter fused (-9). 05525_ System corrupted: Matter fused (-8). 05541_ System corrupted: IFF burst signal emitted. 05541_ Penetrated by Slug. 05560_ System corrupted: Matter fused (-8). 05564_ S-27 Virus destroyed. 05564_ Penetrated by Slug. Map ----- +----------------------------------------------------+ | ?????????????????????????????????????????????????? | | ?????????????????????????????????????????????????? | | ?????????????????????????????????????????????????? | | ?????????????????????????????????????????????????? | | ?????????????????????????????????????????????????? | | ?????????????????????????????????????????????????? | | ?????????????????????????????????????????????????? | | ?????????????????????????????????????????????????? | | ???????????????????????? #???????????????????????? | | ???????????????????????? #???????????????????????? | | ???????????????????????? #??##?##????????????????? | | ?????????????????????### ### ## ##???????????????? | | ?????????????????????#"" ""Y Y ""??????????????? | | ?????????????????????# " " = " ?????????????? | | ?????????????????????# %s ????????????? | | ?????????????????????# ????????????? | | ###################### ???????????? | | s ???????????? | | % s ??????????? | | ??????????? | | R k ??????????? | | BB u u u ?????????? | | ###################### BB BB #??????????? | | ?????????????????????# % BB #??????????? | | ?????????????????????# #??????????? | | ?????????????????????# @ #??????????? | | ?????????????????????# #??????????? | | ?????????????????????######T#"""#######??????????? | | ???????????????????????????##????????????????????? | | ?????????????????????????????????????????????????? | | | | | | | | | | | | | | | | | | | | | | | | | | | | | | | | | | | | | | | | | +----------------------------------------------------+ Best States ------------- Heat Dissipation 78 Energy Generation 31 Energy Capacity 415 Matter Stores 302 Matter Capacity 450 Sight Range 16 Robot Scan Range 15 Terrain Scan Density 10 Jamming Range 12 Armor Coverage 225 Evasion (%) 70 Recoil Reduction 6 Relay Coupler Types 3 Relay Coupler Value 68 Item Schematics ----------------- None Robot Schematics ------------------ None Fabricated ------------ Nothing Repaired ---------- Nothing Alien Tech Used ----------------- None Achievements -------------- I Survived The Infestation No Signal Quick And Dirty Challenges ------------ None Game ------ Seed ArcsightTerrabombTorch Manual? 0 Play Time 01:25:23 Cumulative 35.1 hours Start 2025.07.20 @ 14:56:22 End 2025.07.20 @ 19:53:13 Sessions 7 Manual Loads 0 Difficulty Rogue Special Mode None Game No. 19 Rogue 15 Adventurer 4 Explorer 0 Win Type - Total 0 Types 0/0/0/0/0/0/0/0/0/0 Lore% 24 Gallery% 29 Achievement% 26 Wizard Run 0 Options --------- Layout 1 ASCII 0 Keyboard 0 Movement Numpad Keybinds 1 Fullscreen 1 Font 24/Smallcaps Map View 50x35 Zoom Use 0% Tactical HUD 1 Map Filters NONE Filters NONE Steam 1 RUN: eb6a14ed-9c8b-49f8-aeeb-63c46dc7bb42